[Event "December 5 Early 2023"]
[Site "https://www.chess.com"]
[Date "2023.12.05"]
[Round "3"]
[White "Alikhanov, Felix"]
[Black "Minina, Veronika"]
[Result "1-0"]
[Board "181"]
[TimeControl "180+1"]
[WhiteFideId "4157427"]
[BlackFideId "4174780"]
[WhiteElo "2490"]
[BlackElo "2261"]
[WhiteTeam "RUS"]
[BlackTeam "RUS"]
[WhiteClock "0:02:05"]
[BlackClock "0:00:01"]

1. e4 {[%clk 0:02:56]}  c5 {[%clk 0:02:44]} 2. d4 {[%clk 0:02:55]}  cxd4 {[%clk 0:02:43]} 3. c3 {[%clk 0:02:56]}  dxc3 {[%clk 0:02:40]} 4. Nxc3 {[%clk 0:02:57]}  Nc6 {[%clk 0:02:29]} 5. Nf3 {[%clk 0:02:57]}  e6 {[%clk 0:02:25]} 6. Bc4 {[%clk 0:02:57]}  a6 {[%clk 0:02:25]} 7. O-O {[%clk 0:02:57]}  b5 {[%clk 0:02:25]} 8. Bb3 {[%clk 0:02:57]}  d6 {[%clk 0:02:19]} 9. Qe2 {[%clk 0:02:57]}  Nge7 {[%clk 0:02:16]} 10. Bg5 {[%clk 0:02:55]}  h6 {[%clk 0:02:14]} 11. Bh4 {[%clk 0:02:55]}  Bb7 {[%clk 0:01:51]} 12. Rfd1 {[%clk 0:02:53]}  Qc7 {[%clk 0:01:30]} 13. Rac1 {[%clk 0:02:46]}  Ng6 {[%clk 0:01:12]} 14. Bg3 {[%clk 0:02:43]}  Be7 {[%clk 0:01:10]} 15. Nd5 {[%clk 0:02:42]}  exd5 {[%clk 0:01:08]} 16. exd5 {[%clk 0:02:43]}  O-O {[%clk 0:01:06]} 17. dxc6 {[%clk 0:02:43]}  Bxc6 {[%clk 0:01:07]} 18. Nd4 {[%clk 0:02:43]}  Bg5 {[%clk 0:00:48]} 19. Rxc6 {[%clk 0:02:42]}  Qb7 {[%clk 0:00:45]} 20. Rxd6 {[%clk 0:02:41]}  Rae8 {[%clk 0:00:45]} 21. Qf3 {[%clk 0:02:37]}  Qe7 {[%clk 0:00:38]} 22. h3 {[%clk 0:02:30]}  Ne5 {[%clk 0:00:14]} 23. Bxe5 {[%clk 0:02:24]}  Qxe5 {[%clk 0:00:15]} 24. Rxa6 {[%clk 0:02:21]}  Bf4 {[%clk 0:00:12]} 25. g3 {[%clk 0:02:21]}  Bg5 {[%clk 0:00:09]} 26. Kg2 {[%clk 0:02:17]}  b4 {[%clk 0:00:08]} 27. h4 {[%clk 0:02:16]}  Bf6 {[%clk 0:00:08]} 28. Nf5 {[%clk 0:02:12]}  Qb5 {[%clk 0:00:03]} 29. Nxh6+ {[%clk 0:02:07]}  gxh6 {[%clk 0:00:01]} 30. Rxf6 {[%clk 0:02:06]}  Qa6 {[%clk 0:00:01]} 31. Rxa6 {[%clk 0:02:05]} 1-0

[Event "December 5 Early 2023"]
[Site "https://www.chess.com"]
[Date "2023.12.05"]
[Round "3"]
[White "Martin, Lewis"]
[Black "Krzywda, Andrzej"]
[Result "0-1"]
[Board "182"]
[TimeControl "180+1"]
[WhiteFideId "410551"]
[BlackFideId "1114565"]
[WhiteElo "2262"]
[BlackElo "2487"]
[WhiteTeam "ENG"]
[BlackTeam "POL"]
[WhiteClock "0:01:17"]
[BlackClock "0:00:48"]

1. c4 {[%clk 0:03:00]}  e6 {[%clk 0:02:59]} 2. g3 {[%clk 0:02:59]}  d5 {[%clk 0:02:59]} 3. cxd5 {[%clk 0:02:59]}  exd5 {[%clk 0:02:59]} 4. Nf3 {[%clk 0:02:59]}  Nf6 {[%clk 0:02:53]} 5. Bg2 {[%clk 0:02:59]}  c6 {[%clk 0:02:53]} 6. b3 {[%clk 0:02:59]}  Be7 {[%clk 0:02:53]} 7. Bb2 {[%clk 0:02:59]}  O-O {[%clk 0:02:53]} 8. O-O {[%clk 0:02:59]}  Re8 {[%clk 0:02:53]} 9. d3 {[%clk 0:02:58]}  h6 {[%clk 0:02:49]} 10. Nbd2 {[%clk 0:02:58]}  Bf5 {[%clk 0:02:49]} 11. Qc2 {[%clk 0:02:54]}  Na6 {[%clk 0:02:41]} 12. a3 {[%clk 0:02:52]}  Bh7 {[%clk 0:02:34]} 13. Rfe1 {[%clk 0:02:49]}  Bc5 {[%clk 0:02:26]} 14. b4 {[%clk 0:02:39]}  Bb6 {[%clk 0:02:10]} 15. h3 {[%clk 0:02:38]}  Qd6 {[%clk 0:02:08]} 16. e3 {[%clk 0:02:27]}  c5 {[%clk 0:01:59]} 17. bxc5 {[%clk 0:01:50]}  Nxc5 {[%clk 0:01:59]} 18. Bf1 {[%clk 0:01:46]}  Rac8 {[%clk 0:01:58]} 19. Qb1 {[%clk 0:01:43]}  Ba5 {[%clk 0:01:53]} 20. Ra2 {[%clk 0:01:39]}  Na4 {[%clk 0:01:40]} 21. Bxf6 {[%clk 0:01:35]}  Qxf6 {[%clk 0:01:38]} 22. Qxb7 {[%clk 0:01:34]}  Bb6 {[%clk 0:01:09]} 23. Qxd5 {[%clk 0:01:29]}  Nc3 {[%clk 0:01:06]} 24. Qb3 {[%clk 0:01:27]}  Nxa2 {[%clk 0:01:05]} 25. Qxa2 {[%clk 0:01:28]}  Ba5 {[%clk 0:00:58]} 26. d4 {[%clk 0:01:23]}  Rc2 {[%clk 0:00:51]} 27. Qd5 {[%clk 0:01:21]}  Bxd2 {[%clk 0:00:51]} 28. Nxd2 {[%clk 0:01:17]}  Rxd2 {[%clk 0:00:48]} 29. Re2 {[%clk 0:01:17]} 0-1

[Event "December 5 Early 2023"]
[Site "https://www.chess.com"]
[Date "2023.12.05"]
[Round "3"]
[White "Vifleemskaia, Svetlana"]
[Black "Lehtosaari, Mauri"]
[Result "1/2-1/2"]
[Board "183"]
[TimeControl "180+1"]
[WhiteFideId "4129490"]
[BlackFideId "501999"]
[WhiteElo "2260"]
[BlackElo "2485"]
[WhiteTeam "RUS"]
[BlackTeam "FIN"]
[WhiteClock "0:00:31"]
[BlackClock "0:00:14"]

1. d4 {[%clk 0:02:52]}  d5 {[%clk 0:02:59]} 2. c4 {[%clk 0:02:52]}  c6 {[%clk 0:02:59]} 3. cxd5 {[%clk 0:02:51]}  cxd5 {[%clk 0:02:59]} 4. Bf4 {[%clk 0:02:52]}  Nf6 {[%clk 0:02:59]} 5. Nc3 {[%clk 0:02:51]}  Nc6 {[%clk 0:02:59]} 6. e3 {[%clk 0:02:52]}  Bg4 {[%clk 0:02:48]} 7. Qb3 {[%clk 0:02:49]}  Na5 {[%clk 0:02:46]} 8. Qa4+ {[%clk 0:02:48]}  Bd7 {[%clk 0:02:46]} 9. Qc2 {[%clk 0:02:48]}  e6 {[%clk 0:02:44]} 10. Bd3 {[%clk 0:02:47]}  Rc8 {[%clk 0:02:44]} 11. Nf3 {[%clk 0:02:46]}  Nc4 {[%clk 0:02:40]} 12. Bxc4 {[%clk 0:02:42]}  Rxc4 {[%clk 0:02:37]} 13. Ne5 {[%clk 0:02:42]}  Rc8 {[%clk 0:02:37]} 14. O-O {[%clk 0:02:42]}  Be7 {[%clk 0:02:37]} 15. Qd3 {[%clk 0:02:42]}  O-O {[%clk 0:02:34]} 16. h3 {[%clk 0:02:40]}  a6 {[%clk 0:02:30]} 17. Rfc1 {[%clk 0:02:39]}  h6 {[%clk 0:02:18]} 18. a3 {[%clk 0:02:37]}  Qb6 {[%clk 0:01:58]} 19. b4 {[%clk 0:02:33]}  Bb5 {[%clk 0:01:51]} 20. Qd2 {[%clk 0:02:20]}  Rfd8 {[%clk 0:01:31]} 21. Rab1 {[%clk 0:01:50]}  Ne4 {[%clk 0:01:24]} 22. Nxe4 {[%clk 0:01:48]}  dxe4 {[%clk 0:01:25]} 23. Rxc8 {[%clk 0:01:45]}  Rxc8 {[%clk 0:01:26]} 24. Rc1 {[%clk 0:01:45]}  Qd8 {[%clk 0:01:18]} 25. Rc3 {[%clk 0:01:38]}  f6 {[%clk 0:01:08]} 26. Ng6 {[%clk 0:01:28]}  Kf7 {[%clk 0:00:51]} 27. Nxe7 {[%clk 0:01:24]}  Kxe7 {[%clk 0:00:52]} 28. Qc1 {[%clk 0:01:24]}  Rc6 {[%clk 0:00:31]} 29. Rc5 {[%clk 0:01:21]}  Qd7 {[%clk 0:00:26]} 30. Kh2 {[%clk 0:01:13]}  Kf7 {[%clk 0:00:24]} 31. g4 {[%clk 0:01:12]}  Ba4 {[%clk 0:00:20]} 32. Rxc6 {[%clk 0:01:06]}  Bxc6 {[%clk 0:00:21]} 33. Qc5 {[%clk 0:01:05]}  Bd5 {[%clk 0:00:21]} 34. h4 {[%clk 0:00:58]}  g5 {[%clk 0:00:19]} 35. Bg3 {[%clk 0:00:52]}  Qb5 {[%clk 0:00:17]} 36. Qc7+ {[%clk 0:00:49]}  Ke8 {[%clk 0:00:13]} 37. Bd6 {[%clk 0:00:41]}  Qd7 {[%clk 0:00:14]} 38. hxg5 {[%clk 0:00:41]}  hxg5 {[%clk 0:00:12]} 39. Kg3 {[%clk 0:00:38]}  Qxc7 {[%clk 0:00:12]} 40. Bxc7 {[%clk 0:00:37]}  Kd7 {[%clk 0:00:13]} 41. Bb6 {[%clk 0:00:35]}  Ke7 {[%clk 0:00:12]} 42. a4 {[%clk 0:00:35]}  Bb3 {[%clk 0:00:12]} 43. a5 {[%clk 0:00:35]}  Bc4 {[%clk 0:00:12]} 44. Bc5+ {[%clk 0:00:34]}  Kf7 {[%clk 0:00:13]} 45. Bb6 {[%clk 0:00:34]}  Bd5 {[%clk 0:00:13]} 46. Bd8 {[%clk 0:00:32]}  Bc6 {[%clk 0:00:13]} 47. Kh3 {[%clk 0:00:31]}  Kg6 {[%clk 0:00:13]} 48. Kg3 {[%clk 0:00:31]}  Kf7 {[%clk 0:00:13]} 49. Kh3 {[%clk 0:00:30]}  Kg6 {[%clk 0:00:14]} 50. Kg3 {[%clk 0:00:31]}  Kf7 {[%clk 0:00:14]} 1/2-1/2

[Event "December 5 Early 2023"]
[Site "https://www.chess.com"]
[Date "2023.12.05"]
[Round "3"]
[White "Ernst, Luca"]
[Black "Kaplan, Avi Harrison"]
[Result "0-1"]
[Board "184"]
[TimeControl "180+1"]
[WhiteFideId "45117055"]
[BlackFideId "30934559"]
[WhiteElo "2257"]
[BlackElo "2480"]
[WhiteTeam "FRA"]
[BlackTeam "USA"]
[WhiteClock "0:00:00"]
[BlackClock "0:00:15"]

1. d4 {[%clk 0:03:00]}  Nf6 {[%clk 0:02:56]} 2. Nf3 {[%clk 0:03:00]}  g6 {[%clk 0:02:55]} 3. Bf4 {[%clk 0:02:56]}  Bg7 {[%clk 0:02:54]} 4. e3 {[%clk 0:02:56]}  O-O {[%clk 0:02:54]} 5. Bd3 {[%clk 0:02:52]}  b6 {[%clk 0:02:53]} 6. Nbd2 {[%clk 0:02:51]}  Bb7 {[%clk 0:02:53]} 7. Qe2 {[%clk 0:02:49]}  c5 {[%clk 0:02:51]} 8. c3 {[%clk 0:02:47]}  Nc6 {[%clk 0:02:46]} 9. O-O {[%clk 0:02:36]}  Nh5 {[%clk 0:02:44]} 10. Bg3 {[%clk 0:02:33]}  Nxg3 {[%clk 0:02:43]} 11. hxg3 {[%clk 0:02:34]}  d6 {[%clk 0:02:40]} 12. g4 {[%clk 0:02:28]}  e5 {[%clk 0:02:32]} 13. d5 {[%clk 0:02:24]}  Ne7 {[%clk 0:02:31]} 14. e4 {[%clk 0:02:23]}  Bc8 {[%clk 0:02:30]} 15. g5 {[%clk 0:02:22]}  f5 {[%clk 0:02:25]} 16. gxf6 {[%clk 0:02:20]}  Rxf6 {[%clk 0:02:23]} 17. b4 {[%clk 0:02:09]}  Bg4 {[%clk 0:02:19]} 18. Qe3 {[%clk 0:02:07]}  Qf8 {[%clk 0:02:15]} 19. Nh2 {[%clk 0:02:03]}  Bh6 {[%clk 0:02:11]} 20. Qe1 {[%clk 0:02:03]}  Bd7 {[%clk 0:02:01]} 21. Be2 {[%clk 0:01:55]}  Kg7 {[%clk 0:01:27]} 22. Bg4 {[%clk 0:01:39]}  Qc8 {[%clk 0:01:16]} 23. Bxd7 {[%clk 0:01:23]}  Qxd7 {[%clk 0:01:17]} 24. Qe2 {[%clk 0:01:24]}  Rf4 {[%clk 0:01:10]} 25. g3 {[%clk 0:01:21]}  Rff8 {[%clk 0:01:07]} 26. Rad1 {[%clk 0:01:10]}  Bg5 {[%clk 0:00:57]} 27. Qg4 {[%clk 0:01:08]}  Qxg4 {[%clk 0:00:57]} 28. Nxg4 {[%clk 0:01:09]}  cxb4 {[%clk 0:00:56]} 29. cxb4 {[%clk 0:01:09]}  Rac8 {[%clk 0:00:55]} 30. Kg2 {[%clk 0:00:42]}  Rc2 {[%clk 0:00:48]} 31. Nf3 {[%clk 0:00:41]}  h6 {[%clk 0:00:32]} 32. Nxg5 {[%clk 0:00:34]}  hxg5 {[%clk 0:00:33]} 33. Rc1 {[%clk 0:00:30]}  Rfc8 {[%clk 0:00:29]} 34. Rxc2 {[%clk 0:00:18]}  Rxc2 {[%clk 0:00:30]} 35. Kf3 {[%clk 0:00:18]}  Rxa2 {[%clk 0:00:28]} 36. Rc1 {[%clk 0:00:18]}  Ra3+ {[%clk 0:00:26]} 37. Ke2 {[%clk 0:00:16]}  Rb3 {[%clk 0:00:25]} 38. Rc7 {[%clk 0:00:16]}  Kf7 {[%clk 0:00:25]} 39. Nh6+ {[%clk 0:00:14]}  Ke8 {[%clk 0:00:24]} 40. Rxa7 {[%clk 0:00:13]}  Rxb4 {[%clk 0:00:23]} 41. Kf3 {[%clk 0:00:11]}  Rb2 {[%clk 0:00:19]} 42. Rb7 {[%clk 0:00:10]}  b5 {[%clk 0:00:18]} 43. Rb6 {[%clk 0:00:10]}  Kd7 {[%clk 0:00:17]} 44. Nf7 {[%clk 0:00:10]}  Nc8 {[%clk 0:00:16]} 45. Rb7+ {[%clk 0:00:09]}  Ke8 {[%clk 0:00:17]} 46. Nxg5 {[%clk 0:00:09]}  b4 {[%clk 0:00:16]} 47. Ne6 {[%clk 0:00:06]}  b3 {[%clk 0:00:15]} 48. Rb8 {[%clk 0:00:03]}  Kd7 {[%clk 0:00:14]} 49. Rb7+ {[%clk 0:00:03]}  Ke8 {[%clk 0:00:14]} 50. Ng7+ {[%clk 0:00:03]}  Kf8 {[%clk 0:00:14]} 51. Ne6+ {[%clk 0:00:03]}  Kg8 {[%clk 0:00:14]} 52. Rb8 {[%clk 0:00:03]}  Rc2 {[%clk 0:00:15]} 53. Rxb3 {[%clk 0:00:02]}  Kf7 {[%clk 0:00:15]} 54. Rb8 {[%clk 0:00:02]}  Kf6 {[%clk 0:00:16]} 55. Rb7 {[%clk 0:00:01]}  g5 {[%clk 0:00:16]} 56. Kg2 {[%clk 0:00:02]}  Ne7 {[%clk 0:00:16]} 57. Rb8 {[%clk 0:00:01]}  Ng6 {[%clk 0:00:16]} 58. Rg8 {[%clk 0:00:02]}  g4 {[%clk 0:00:16]} 59. Ra8 {[%clk 0:00:00]}  Re2 {[%clk 0:00:15]} 0-1

[Event "December 5 Early 2023"]
[Site "https://www.chess.com"]
[Date "2023.12.05"]
[Round "3"]
[White "NovakRatko"]
[Black "Sami, Sama"]
[Result "1-0"]
[Board "185"]
[TimeControl "180+1"]
[BlackFideId "4802926"]
[WhiteElo "2477"]
[BlackElo "2256"]
[BlackTeam "IRQ"]
[WhiteClock "0:02:18"]
[BlackClock "0:01:33"]

1. d4 {[%clk 0:02:59]}  Nf6 {[%clk 0:02:59]} 2. c4 {[%clk 0:02:59]}  e6 {[%clk 0:03:00]} 3. a3 {[%clk 0:02:59]}  d5 {[%clk 0:02:58]} 4. Nc3 {[%clk 0:02:59]}  Bd6 {[%clk 0:02:56]} 5. f3 {[%clk 0:02:59]}  O-O {[%clk 0:02:56]} 6. e4 {[%clk 0:02:58]}  c6 {[%clk 0:02:53]} 7. e5 {[%clk 0:02:54]}  Bxe5 {[%clk 0:02:49]} 8. dxe5 {[%clk 0:02:53]}  Nfd7 {[%clk 0:02:50]} 9. f4 {[%clk 0:02:53]}  f6 {[%clk 0:02:49]} 10. exf6 {[%clk 0:02:45]}  Qxf6 {[%clk 0:02:48]} 11. Nf3 {[%clk 0:02:45]}  e5 {[%clk 0:02:41]} 12. cxd5 {[%clk 0:02:42]}  exf4 {[%clk 0:02:40]} 13. Be2 {[%clk 0:02:39]}  g5 {[%clk 0:02:34]} 14. Qd4 {[%clk 0:02:28]}  Qh6 {[%clk 0:01:55]} 15. dxc6 {[%clk 0:02:27]}  Nxc6 {[%clk 0:01:52]} 16. Bc4+ {[%clk 0:02:26]}  Rf7 {[%clk 0:01:44]} 17. Bxf7+ {[%clk 0:02:24]}  Kxf7 {[%clk 0:01:44]} 18. Qd5+ {[%clk 0:02:20]}  Kf8 {[%clk 0:01:33]} 19. Qxg5 {[%clk 0:02:18]} 1-0

[Event "December 5 Early 2023"]
[Site "https://www.chess.com"]
[Date "2023.12.05"]
[Round "3"]
[White "Kruckenhauser, Arthur"]
[Black "Garcia Correa, Jose Ricardo"]
[Result "1-0"]
[Board "186"]
[TimeControl "180+1"]
[WhiteFideId "1642812"]
[BlackFideId "5101832"]
[WhiteElo "2468"]
[BlackElo "2238"]
[WhiteTeam "AUT"]
[BlackTeam "MEX"]
[WhiteClock "0:01:20"]
[BlackClock "0:01:42"]

1. c4 {[%clk 0:03:00]}  Nf6 {[%clk 0:02:53]} 2. g3 {[%clk 0:02:56]}  e5 {[%clk 0:02:48]} 3. Bg2 {[%clk 0:02:54]}  Bc5 {[%clk 0:02:49]} 4. e3 {[%clk 0:02:54]}  a6 {[%clk 0:02:46]} 5. Ne2 {[%clk 0:02:54]}  Ba7 {[%clk 0:02:45]} 6. Nbc3 {[%clk 0:02:52]}  O-O {[%clk 0:02:44]} 7. O-O {[%clk 0:02:51]}  d6 {[%clk 0:02:45]} 8. d4 {[%clk 0:02:51]}  Nbd7 {[%clk 0:02:42]} 9. b3 {[%clk 0:02:50]}  c6 {[%clk 0:02:41]} 10. Ba3 {[%clk 0:02:49]}  Qc7 {[%clk 0:02:40]} 11. dxe5 {[%clk 0:02:48]}  dxe5 {[%clk 0:02:39]} 12. Bxf8 {[%clk 0:02:44]}  Nxf8 {[%clk 0:02:40]} 13. Ne4 {[%clk 0:02:38]}  Nxe4 {[%clk 0:02:39]} 14. Bxe4 {[%clk 0:02:39]}  f5 {[%clk 0:02:39]} 15. Bg2 {[%clk 0:02:38]}  Be6 {[%clk 0:02:39]} 16. Qc2 {[%clk 0:02:37]}  Re8 {[%clk 0:02:37]} 17. Rad1 {[%clk 0:02:37]}  Bc5 {[%clk 0:02:35]} 18. Rd2 {[%clk 0:02:35]}  Qf7 {[%clk 0:02:34]} 19. Rfd1 {[%clk 0:02:34]}  Qf6 {[%clk 0:02:28]} 20. Nc3 {[%clk 0:02:32]}  h5 {[%clk 0:02:19]} 21. h4 {[%clk 0:02:08]}  g5 {[%clk 0:02:17]} 22. hxg5 {[%clk 0:02:09]}  Qxg5 {[%clk 0:02:17]} 23. Ne2 {[%clk 0:02:07]}  h4 {[%clk 0:02:16]} 24. Qc3 {[%clk 0:01:56]}  hxg3 {[%clk 0:02:03]} 25. Qxe5 {[%clk 0:01:36]}  gxf2+ {[%clk 0:02:02]} 26. Kxf2 {[%clk 0:01:35]}  Bf7 {[%clk 0:01:58]} 27. Qxc5 {[%clk 0:01:35]}  Qh4+ {[%clk 0:01:49]} 28. Kg1 {[%clk 0:01:27]}  Ne6 {[%clk 0:01:48]} 29. Qxf5 {[%clk 0:01:24]}  Ng7 {[%clk 0:01:42]} 30. Qf4 {[%clk 0:01:20]} 1-0

[Event "December 5 Early 2023"]
[Site "https://www.chess.com"]
[Date "2023.12.05"]
[Round "3"]
[White "Teumer, Joerg, Dr."]
[Black "Mizzi, Jack"]
[Result "0-1"]
[Board "187"]
[TimeControl "180+1"]
[WhiteFideId "4643526"]
[BlackFideId "5602521"]
[WhiteElo "2138"]
[BlackElo "2462"]
[WhiteTeam "GER"]
[BlackTeam "MLT"]
[WhiteClock "0:00:43"]
[BlackClock "0:01:59"]

1. d4 {[%clk 0:03:00]}  Nf6 {[%clk 0:02:58]} 2. Bg5 {[%clk 0:03:00]}  d5 {[%clk 0:02:56]} 3. Bxf6 {[%clk 0:03:00]}  exf6 {[%clk 0:02:56]} 4. e3 {[%clk 0:02:56]}  c6 {[%clk 0:02:56]} 5. c4 {[%clk 0:02:41]}  Qb6 {[%clk 0:02:55]} 6. Qb3 {[%clk 0:02:37]}  Be6 {[%clk 0:02:52]} 7. Nc3 {[%clk 0:02:30]}  Bb4 {[%clk 0:02:51]} 8. c5 {[%clk 0:02:23]}  Qa5 {[%clk 0:02:48]} 9. a3 {[%clk 0:02:16]}  Bxc3+ {[%clk 0:02:48]} 10. Qxc3 {[%clk 0:02:16]}  Qxc3+ {[%clk 0:02:47]} 11. bxc3 {[%clk 0:02:16]}  Nd7 {[%clk 0:02:46]} 12. Bd3 {[%clk 0:02:10]}  b6 {[%clk 0:02:45]} 13. cxb6 {[%clk 0:02:09]}  axb6 {[%clk 0:02:44]} 14. Ne2 {[%clk 0:02:08]}  O-O {[%clk 0:02:42]} 15. Kd2 {[%clk 0:02:07]}  Ra5 {[%clk 0:02:42]} 16. Ra2 {[%clk 0:01:58]}  Rfa8 {[%clk 0:02:40]} 17. Rha1 {[%clk 0:01:58]}  b5 {[%clk 0:02:40]} 18. Nc1 {[%clk 0:01:55]}  Nb6 {[%clk 0:02:33]} 19. Nb3 {[%clk 0:01:53]}  R5a7 {[%clk 0:02:33]} 20. Nc5 {[%clk 0:01:50]}  Nc4+ {[%clk 0:02:30]} 21. Bxc4 {[%clk 0:01:47]}  bxc4 {[%clk 0:02:31]} 22. Nxe6 {[%clk 0:01:42]}  fxe6 {[%clk 0:02:32]} 23. Kc2 {[%clk 0:01:41]}  Ra4 {[%clk 0:02:29]} 24. g3 {[%clk 0:01:39]}  Kf7 {[%clk 0:02:29]} 25. f3 {[%clk 0:01:33]}  g6 {[%clk 0:02:29]} 26. Kc1 {[%clk 0:01:28]}  h5 {[%clk 0:02:27]} 27. Kc2 {[%clk 0:01:28]}  g5 {[%clk 0:02:26]} 28. Kc1 {[%clk 0:01:24]}  Kg6 {[%clk 0:02:26]} 29. Kc2 {[%clk 0:01:24]}  f5 {[%clk 0:02:24]} 30. f4 {[%clk 0:01:23]}  h4 {[%clk 0:02:22]} 31. gxh4 {[%clk 0:01:17]}  gxf4 {[%clk 0:02:19]} 32. exf4 {[%clk 0:01:15]}  Kh5 {[%clk 0:02:19]} 33. Kb2 {[%clk 0:01:11]}  Rb8+ {[%clk 0:02:19]} 34. Kc2 {[%clk 0:01:11]}  Rb3 {[%clk 0:02:19]} 35. Re1 {[%clk 0:01:07]}  Raxa3 {[%clk 0:02:15]} 36. Rxa3 {[%clk 0:01:07]}  Rxa3 {[%clk 0:02:14]} 37. Rxe6 {[%clk 0:01:08]}  Ra2+ {[%clk 0:02:13]} 38. Kd1 {[%clk 0:01:08]}  Kxh4 {[%clk 0:02:11]} 39. Rxc6 {[%clk 0:01:06]}  Kg4 {[%clk 0:02:06]} 40. Rd6 {[%clk 0:01:06]}  Kxf4 {[%clk 0:02:03]} 41. Rxd5 {[%clk 0:01:07]}  Ke4 {[%clk 0:02:04]} 42. Rc5 {[%clk 0:01:07]}  Kd3 {[%clk 0:02:04]} 43. Ke1 {[%clk 0:01:05]}  f4 {[%clk 0:02:02]} 44. d5 {[%clk 0:01:00]}  Ke3 {[%clk 0:02:00]} 45. Kf1 {[%clk 0:00:43]}  f3 {[%clk 0:01:59]} 0-1

[Event "December 5 Early 2023"]
[Site "https://www.chess.com"]
[Date "2023.12.05"]
[Round "3"]
[White "Onslow, Alfie"]
[Black "Mickiewicz, Piotr"]
[Result "1-0"]
[Board "188"]
[TimeControl "180+1"]
[WhiteFideId "436976"]
[BlackFideId "1114891"]
[WhiteElo "2178"]
[BlackElo "2428"]
[WhiteTeam "ENG"]
[BlackTeam "POL"]
[WhiteClock "0:00:05"]
[BlackClock "0:00:00"]

1. e4 {[%clk 0:02:56]}  e5 {[%clk 0:02:58]} 2. Bc4 {[%clk 0:02:54]}  Nf6 {[%clk 0:02:51]} 3. d3 {[%clk 0:02:39]}  Nc6 {[%clk 0:02:50]} 4. Nc3 {[%clk 0:02:39]}  Na5 {[%clk 0:02:45]} 5. Nf3 {[%clk 0:02:37]}  d6 {[%clk 0:02:36]} 6. h3 {[%clk 0:02:34]}  c6 {[%clk 0:02:33]} 7. a3 {[%clk 0:02:29]}  Nxc4 {[%clk 0:02:29]} 8. dxc4 {[%clk 0:02:30]}  Qc7 {[%clk 0:02:17]} 9. Qd3 {[%clk 0:02:29]}  Be7 {[%clk 0:02:15]} 10. O-O {[%clk 0:02:16]}  O-O {[%clk 0:02:13]} 11. Rd1 {[%clk 0:02:10]}  a5 {[%clk 0:02:10]} 12. Bg5 {[%clk 0:02:07]}  Re8 {[%clk 0:02:07]} 13. Bxf6 {[%clk 0:02:06]}  Bxf6 {[%clk 0:01:30]} 14. Qxd6 {[%clk 0:02:00]}  Qxd6 {[%clk 0:01:23]} 15. Rxd6 {[%clk 0:02:01]}  Be6 {[%clk 0:01:12]} 16. b3 {[%clk 0:01:56]}  Be7 {[%clk 0:01:11]} 17. Rd3 {[%clk 0:01:55]}  f6 {[%clk 0:01:11]} 18. Na4 {[%clk 0:01:51]}  Rad8 {[%clk 0:01:09]} 19. Nb2 {[%clk 0:01:35]}  h5 {[%clk 0:01:03]} 20. Kf1 {[%clk 0:01:33]}  g5 {[%clk 0:01:02]} 21. Ke2 {[%clk 0:01:31]}  g4 {[%clk 0:00:52]} 22. Nh4 {[%clk 0:01:21]}  Kf7 {[%clk 0:00:51]} 23. hxg4 {[%clk 0:01:17]}  hxg4 {[%clk 0:00:50]} 24. g3 {[%clk 0:00:59]}  Rc8 {[%clk 0:00:33]} 25. Nd1 {[%clk 0:00:49]}  b5 {[%clk 0:00:30]} 26. cxb5 {[%clk 0:00:50]}  cxb5 {[%clk 0:00:29]} 27. Ne3 {[%clk 0:00:51]}  Bc5 {[%clk 0:00:23]} 28. Nhf5 {[%clk 0:00:43]}  Rcd8 {[%clk 0:00:14]} 29. b4 {[%clk 0:00:30]}  axb4 {[%clk 0:00:12]} 30. axb4 {[%clk 0:00:31]}  Bxb4 {[%clk 0:00:13]} 31. Ra7+ {[%clk 0:00:29]}  Kf8 {[%clk 0:00:13]} 32. Rb7 {[%clk 0:00:13]}  Rb8 {[%clk 0:00:04]} 33. Rxb8 {[%clk 0:00:07]}  Rxb8 {[%clk 0:00:05]} 34. Rd1 {[%clk 0:00:06]}  Bc5 {[%clk 0:00:04]} 35. Rh1 {[%clk 0:00:06]}  Bxe3 {[%clk 0:00:03]} 36. Nxe3 {[%clk 0:00:06]}  Bg8 {[%clk 0:00:03]} 37. Rh6 {[%clk 0:00:06]}  Rc8 {[%clk 0:00:04]} 38. Kd2 {[%clk 0:00:06]}  Ke7 {[%clk 0:00:04]} 39. Nxg4 {[%clk 0:00:06]}  Be6 {[%clk 0:00:03]} 40. Nxf6 {[%clk 0:00:06]}  Rc4 {[%clk 0:00:03]} 41. Nd5+ {[%clk 0:00:06]}  Kd6 {[%clk 0:00:02]} 42. f3 {[%clk 0:00:06]}  Rd4+ {[%clk 0:00:03]} 43. Ke3 {[%clk 0:00:06]}  Kd7 {[%clk 0:00:02]} 44. Nc3 {[%clk 0:00:06]}  Rc4 {[%clk 0:00:03]} 45. Nxb5 {[%clk 0:00:06]}  Rxc2 {[%clk 0:00:03]} 46. Kd3 {[%clk 0:00:04]}  Rb2 {[%clk 0:00:02]} 47. Nc3 {[%clk 0:00:04]}  Rb3 {[%clk 0:00:02]} 48. g4 {[%clk 0:00:04]}  Kd6 {[%clk 0:00:02]} 49. Kc2 {[%clk 0:00:04]}  Ra3 {[%clk 0:00:02]} 50. Nb5+ {[%clk 0:00:04]}  Ke7 {[%clk 0:00:00]} 51. Nxa3 {[%clk 0:00:05]} 1-0